Cogmind - Beta 15 @@@ ROGUE MODE // 2025.06.30 @ 22:09:26 Player: CheifClapdad Result: Self-destructed Performance ------------- Evolutions (2) 1000 Regions Visited (3) 600 Robots Destroyed (9) 45 Value Destroyed (320) 320 Prototype IDs (0) 0 Alien Tech Used (0) 0 Bonus (0) 0 TOTAL SCORE: 1965 Bonus ------- None Cogmind --------- Core Integrity 265/550 Matter 300/300 Energy 100/100 System Corruption 0% Temperature Cool (5) Movement Core (700) Ox13 Location -8/Materials Parts ------- > --- POWER (1) -------- (None) > --- PROPULSION (4) --- (None) > --- UTILITY (4) ------ High-capacity Storage Unit > --- WEAPON (2) ------- (None) > --- INVENTORY (20) --- Light Ion Engine Compact Wheel System Shield EM Pulse Gun Peak State ------------ > --- POWER ------------ Light Ion Engine > --- PROPULSION ------- Light Treads Light Treads Wheel Wheel > --- UTILITY ---------- Improved Heat Sink High-capacity Storage Unit > --- WEAPON ----------- EM Pulse Gun Minigun > --- INVENTORY -------- Light Ion Engine Advanced Treads Compact Wheel System Shield Assault Rifle [Rating: 13] Favorites ----------- Power Light Ion Engine Engine Light Ion Engine Propulsion Wheel Treads Light Treads Wheel Wheel Utility High-capacity Storage Unit Device Improved Heat Sink Storage High-capacity Storage Unit Weapon EM Pulse Gun Energy Gun EM Pulse Gun Ballistic Gun Assault Rifle Build | -11 -10 -10 -8 ------- Run | Yrd Mat Sub Mat Slots Evolved 4 | . . . 4 Power . | . . . . Propulsion 2 | . . . 2 Utility 2 | . . . 2 Weapon . | . . . . Parts Attached 13 | 5 2 . 6 Power 1 | 1 . . . Engine 1 | 1 . . . Core . | . . . . Reactor . | . . . . Propulsion 5 | 2 . . 3 Treads 3 | 1 . . 2 Leg . | . . . . Wheel 2 | 1 . . 1 Hover . | . . . . Flight . | . . . . Utility 3 | . 2 . 1 Device 1 | . . . 1 Storage 2 | . 2 . . Processor . | . . . . Hackware . | . . . . Protection . | . . . . Artifact . | . . . . Weapon 4 | 2 . . 2 Energy Gun 2 | 2 . . . Energy Cannon . | . . . . Ballistic Gun 2 | . . . 2 Ballistic Cannon . | . . . . Launcher . | . . . . Special Weapon . | . . . . Impact Weapon . | . . . . Slashing Weapon . | . . . . Piercing Weapon . | . . . . Special Melee Weapon . | . . . . Unidentified Prototypes . | . . . . Parts Lost 9 | . . . 9 Power 1 | . . . 1 Propulsion 5 | . . . 5 Utility 1 | . . . 1 Weapon 2 | . . . 2 Highest Loss Streak 9 | . . . 9 To Critical Strikes 1 | . . . 1 Average Backups 4 | 3 4 5 4 Power . | . 1 1 1 Propulsion 2 | 1 2 3 1 Utility . | . . . . Weapon . | . 1 1 1 Tool/Special . | . . . . Unused Backups 3 | . . . 3 Power 1 | . . . 1 Propulsion 1 | . . . 1 Utility 1 | . . . 1 Weapon . | . . . . Tool/Special . | . . . . Average Slot Usage (%) 81 | . 85 85 74 Engine 11 | . 14 14 7 Treads 15 | . 14 14 17 Wheel 14 | . 14 14 17 Device 2 | . . . 6 Storage 12 | . 14 14 9 Energy Gun 22 | . 28 28 9 Ballistic Gun 2 | . . . 7 Peak Build Rating 13 | 5 7 6 13 Average Rating 7 | 3 6 6 10 On Entrance 4 | . 5 6 6 Naked Turns . | . . . . Heaviest Build 49 | 7 47 47 49 Greatest Support 42 | 20 20 10 42 Greatest Overweight (x) 4 | . 4 4 4 Average Overweight (x) 2 | . 3 4 1 Largest Inventory Capacity 20 | 5 20 20 20 Average Capacity 17 | 5 18 20 20 Most Carried 5 | 5 5 5 5 Average Carried 4 | 4 4 5 4 Final Capacity 20 | 5 20 20 20 Final Carried 5 | 5 5 5 4 Class Distribution -------------------- 100% | Mutant Dominant Class ---------------- Mutant | -10/Materials Mutant | -10/Subcaves Mutant | -8/Materials Resources | -11 -10 -10 -8 ----------- Run | Yrd Mat Sub Mat Matter Collected 418 | 211 59 . 148 Remotely . | . . . . Salvage Created 434 | . 286 . 148 Parts 22 | . 11 . 11 Haulers Intercepted . | . . . . Recyclers Shooed 1 | . 1 . . Parts Field Recycled . | . . . . Retrieved Matter . | . . . . Parts Self-Destructed . | . . . . Prevented . | . . . . Kills | -11 -10 -10 -8 ------- Run | Yrd Mat Sub Mat Combat Hostiles Destroyed 7 | . 4 . 3 Guns 5 | . 2 . 3 AOE 2 | . 2 . . Classes Destroyed 4 | . 3 . 1 Recycler 1 | . 1 . . Watcher 1 | . 1 . . Grunt 6 | . 4 . 2 Hunter 1 | . . . 1 Best Kill Streak 3 | . 3 . 2 Combat Bots Only 2 | . 2 . 2 Max Kills in Single Turn 1 | . 1 . 1 Gunslinging . | . . . . Exploded 1 | . 1 . . Melee . | . . . . Uniques/NPCs Destroyed . | . . . . Combat | -11 -10 -10 -8 -------- Run | Yrd Mat Sub Mat Hostile Shots Fired 99 | . 12 . 87 Missed 20 | . 1 . 19 Hits 79 | . 11 . 68 Projectile 79 | . 11 . 68 Critical Strikes 6 | . . . 6 Damage Taken 1272 | . 131 113 1028 Core 323 | . 38 . 285 Absorbed by Shields . | . . . . Core Remaining (%) 92 | 100 . 84 . Volleys Fired 42 | . 18 . 24 Largest 2 | . 2 . 2 Hottest 80 | . 80 . 80 Shots Fired 79 | . 36 . 43 Gun 79 | . 36 . 43 Cannon . | . . . . Launcher . | . . . . Special . | . . . . Kinetic 39 | . . . 39 Thermal . | . . . . Explosive . | . . . . Electromagnetic 40 | . 36 . 4 Robot Hit Streak 14 | . 9 . 14 Robot Miss Streak 3 | . 3 . 3 Penetration Max . | . . . . Secondary Targets . | . . . . Shots Hit Robots 53 | . 22 . 31 Core Hits 18 | . 9 . 9 Critical Kills . | . . . . Critical Parts Destroyed . | . . . . Critical Strikes 1 | . 1 . . Corrupt 1 | . 1 . . Melee Attacks . | . . . . Impact . | . . . . Slashing . | . . . . Piercing . | . . . . Sneak Attacks . | . . . . Combat Hostiles . | . . . . Follow-up Attacks . | . . . . Damage Inflicted 883 | . 479 . 404 Guns 703 | . 307 . 396 Cannons . | . . . . Explosions 172 | . 172 . . Melee . | . . . . Ramming 8 | . . . 8 Kinetic 396 | . . . 396 Thermal 172 | . 172 . . Explosive . | . . . . Electromagnetic 307 | . 307 . . Impact . | . . . . Slashing . | . . . . Piercing . | . . . . Highest Corruption . | . . . . Average Corruption . | . . . . Corruption Purged . | . . . . Corruption Blocked . | . . . . Overload Shots . | . . . . Overflow Damage . | . . . . Projectiles . | . . . . Explosions . | . . . . Melee . | . . . . Knockbacks . | . . . . Impact . | . . . . Kinetic . | . . . . Secondary . | . . . . Self-Inflicted Damage . | . . . . Shots . | . . . . Rammed 1 | . . . 1 Targets Rammed 1 | . . . 1 Kicked . | . . . . Crushed . | . . . . Highest Temperature 159 | . 159 . 18 Average Temperature 60 | . 64 . 12 Received Heat Transfer 435 | . 75 . 360 Siege Activations . | . . . . Martial Activations . | . . . . Shielding Activations . | . . . . Robots Disrupted . | . . . . Combat Hostiles . | . . . . Robots Corrupted . | . . . . Combat Hostiles . | . . . . Parts Fried 1 | . 1 . . Impact Corruptions . | . . . . Robots Melted . | . . . . Combat Hostiles . | . . . . Parts Melted . | . . . . Heat Transferred 100 | . 100 . . Parts Sabotaged . | . . . . Parts Stolen . | . . . . Parts Stripped . | . . . . Power Chain Reactions 3 | . 3 . . Alert | -11 -10 -10 -8 ------- Run | Yrd Mat Sub Mat Maximum Alert Level . | . . . . Low Security (%) 100 | 100 100 . 100 Level 1 . | . . . . Level 2 . | . . . . Level 3 . | . . . . Level 4 . | . . . . Level 5 . | . . . . High Security . | . . . . Max Security . | . . . . Peak Influence 76 | . 76 . 50 Initial . | . . . . Average 12 | . 25 . 3 Influence Increases 201 | . 131 . 70 Destroy 0b10 Robot/C 140 | . 80 . 60 Destroy 0b10 Robot/NC 10 | . 10 . . Destroy Leader 32 | . 22 . 10 Destroy Structure 19 | . 19 . . Influence Decreases 201 | . 131 . 70 Time Decay 151 | . 131 . 20 Lost Part 50 | . . . 50 Squads Dispatched 3 | . 2 . 1 Investigation . | . . . . Extermination . | . . . . Reinforcement 3 | . 2 . 1 Assault . | . . . . Garrison . | . . . . Intercept . | . . . . Searches Triggered . | . . . . Construction Impeded . | . . . . Haulers Reinforced . | . . . . Active Scanning Responses . | . . . . Cargo Convoy Interrupts . | . . . . Stealth | -11 -10 -10 -8 --------- Run | Yrd Mat Sub Mat Distress Signals . | . . . . Communications Jammed . | . . . . Distress Signals . | . . . . Times Spotted 16 | . 8 . 8 Peak Tracking Total 7 | . 4 . 7 Tactical Retreats . | . . . . Traps | -11 -10 -10 -8 ------- Run | Yrd Mat Sub Mat Traps Triggered 2 | . . 2 . Indirectly . | . . . . Trap Hack Attempts . | . . . . Triggered . | . . . . Disarmed . | . . . . Reprogrammed . | . . . . Reused . | . . . . Traps Extracted . | . . . . Installed . | . . . . Triggered . | . . . . Machines | -11 -10 -10 -8 ---------- Run | Yrd Mat Sub Mat Machines Disabled . | . . . . Max in Single Turn . | . . . . Machines Repaired . | . . . . Machines Dismantled . | . . . . Machines Sabotaged . | . . . . Overloaded Fab Kills . | . . . . Hacking | -11 -10 -10 -8 --------- Run | Yrd Mat Sub Mat Machines Accessed . | . . . . Terminals . | . . . . Fabricators . | . . . . Repair Stations . | . . . . Recycling Units . | . . . . Scanalyzers . | . . . . Garrison Access . | . . . . Total Hacks . | . . . . Successful . | . . . . Failed . | . . . . Catastrophic . | . . . . Database Lockouts . | . . . . Manual . | . . . . Terminals . | . . . . Fabricators . | . . . . Repair Stations . | . . . . Recycling Units . | . . . . Scanalyzers . | . . . . Garrison Access . | . . . . Terminal Hacks . | . . . . Fabricator Hacks . | . . . . Repair Station Hacks . | . . . . Recycling Unit Hacks . | . . . . Scanalyzer . | . . . . Garrison Access Hacks . | . . . . Unauthorized Hacks . | . . . . Terminals . | . . . . Fabricators . | . . . . Repair Stations . | . . . . Recycling Units . | . . . . Scanalyzers . | . . . . Garrison Access . | . . . . Data Cores Recovered . | . . . . Used . | . . . . Hacking Detections . | . . . . Full Trace Events . | . . . . Feedback Events . | . . . . Feedback Blocked . | . . . . Robot Schematics Acquired . | . . . . Robots Built . | . . . . Authchips . | . . . . Time . | . . . . Total Robot Build Rating . | . . . . Part Schematics Acquired . | . . . . Parts Built . | . . . . Authchips . | . . . . Time . | . . . . Total Part Build Rating . | . . . . Parts Repaired . | . . . . Time . | . . . . Parts Recycled . | . . . . Recycled Matter . | . . . . Retrieved Matter . | . . . . Retrieved Components . | . . . . Parts Scanalyzed . | . . . . Part Schematics Acquired . | . . . . Parts Damaged . | . . . . Bothacking | -11 -10 -10 -8 ------------ Run | Yrd Mat Sub Mat Used RIF Installer . | . . . . Robots Hacked . | . . . . Non-combat . | . . . . Combat . | . . . . Robot Hacks Applied . | . . . . Relay Couplers Released . | . . . . Fabnet Peak Effective % . | . . . . Robots Rewired . | . . . . Allies Hacked . | . . . . Hacks Repelled . | . . . . Allies | -11 -10 -10 -8 -------- Run | Yrd Mat Sub Mat Total Allies . | . . . . Largest Group . | . . . . Highest-Rated Group . | . . . . Highest-Rated Ally . | . . . . Total Orders . | . . . . Ally Attacks . | . . . . Total Damage . | . . . . Kills . | . . . . Allies Corrupted . | . . . . Allies Melted . | . . . . Intel | -11 -10 -10 -8 ------- Run | Yrd Mat Sub Mat Active Infowar (turns) . | . . . . Robot Analysis Total . | . . . . Derelict Logs Recovered . | . . . . Drone Launches . | . . . . Drone Recoveries . | . . . . Exploration | -11 -10 -10 -8 ------------- Run | Yrd Mat Sub Mat Turns Passed 1254 | 142 408 349 355 Spaces Moved 590 | 85 137 250 118 Core 2 | 2 . . . Treads 220 | 79 27 . 114 Legs . | . . . . Wheels 368 | 4 110 250 4 Hover . | . . . . Flight . | . . . . Fastest Speed 50 | 50 140 140 140 Average Speed 162 | 153 143 140 236 Slowest Speed 240 | 160 160 140 240 Overloaded Moves . | . . . . Propulsion Burnouts . | . . . . Robots Hopped . | . . . . Potential Cave-ins . | . . . . Cave-ins Triggered . | . . . . Exploration Rate (%) 13 | 5 18 19 12 Regions Visited 3 Branch Regions 1 Pre-discovered Areas . | . . . . Known Exits Taken . | . . . . Unknown Exits Taken 3 | 1 1 1 . Scrap Searched . | . . . . Spaces Dug . | . . . . Terrain Destroyed 20 | . 20 . . Melee . | . . . . Projectile . | . . . . AOE 20 | . 20 . . Terrain Rammed . | . . . . Walls Destroyed . | . . . . Machines Disabled . | . . . . Actions | -11 -10 -10 -8 --------- Run | Yrd Mat Sub Mat Total 807 | 94 312 249 152 Wait 154 | . 154 . . Move 587 | 84 136 249 118 Hop . | . . . . Pick Up 8 | 5 1 . 2 Fast Attach 8 | 5 1 . 2 Attach 4 | . 1 . 3 Detach . | . . . . Swap 1 | . . . 1 Drop 2 | . 1 . 1 Fire 42 | . 18 . 24 Melee . | . . . . Ram . | . . . . Kick . | . . . . Crush 1 | . . . 1 Escape Stasis . | . . . . Rewire . | . . . . Trap . | . . . . Miscellaneous . | . . . . Route ------- -11/Scrapyard -10/Materials -10/Subcaves -8/Materials History --------- Turn | Location | Event 22 | -11/Scrapyard | Discovered new exit (range 16) 143 | -11/Scrapyard | Entered Materials 305 | -10/Materials | Build established: Mutant 334 | -10/Materials | Discovered new exit (range 4) 551 | -10/Materials | Entered Subcaves 873 | -10/Subcaves | Discovered new exit (range 16) 900 | -10/Subcaves | Entered Materials 900 | -8/Materials | Evolved 4 slots: Propulsion x2, Utility x2 1255 | -8/Materials | Core integrity fell below 50% 1255 | -8/Materials | Self-destructed Last Messages --------------- 01215_ Penetrated by Slug. 01218_ Critical hit (Burn: +37). 01218_ Penetrated by Slug. 01218_ Critical hit (Destroy). 01218_ Lgt. Treads destroyed. 01220_ Wheel destroyed. 01223_ H-55 Commando destroyed. 01228_ G-47 Trooper destroyed. 01231_ Acquired 53 matter. 01236_ Minigun destroyed. 01239_ Critical hit (Burn: +37). 01241_ Lgt. Treads destroyed. 01244_ Assault Rifle destroyed. 01245_ Critical hit (Burn: +37). 01248_ Acquired 42 matter. 01250_ Critical hit (Burn: +37). 01250_ Slammed into Y-45 Defender. 01254_ Adv. Treads destroyed. 01254_ Critical hit (Burn: +37). 01254_ Wheel destroyed. Map ----- +----------------------------------------------------+ | ?????????????????????????????????????????????????? | | ?????????????????????????????????????????????????? | | ?????????????????????????????????????????????????? | | ?????????????????????????????????????????????????? | | ?????????????????????????????????????????????????? | | ?????????????????????????????????????????????????? | | ?????????????????????????????????????????????????? | | ?????????????????????????????????????????????????? | | ?????????????????????????????????????????????????? | | ?????????????????????????????????????????????????? | | ?????????????????????????????????????????????????? | | ?????????????????????????????????????????????????? | | ?????????????????????????????????????????????????? | | ?????????H???????????????????????????????????????? | | ?????????????????????????????????????????????????? | | ?????????????????????????????????????????????????? | | ?????????????????????????????????????????????????? | | ?????????????????????????????????????????????????? | | ?????????????????????????????????????????????????? | | ?????????????????????????????????????????????????? | | ???????????????????????##########????????????????? | | ???????????????????????+ #????????????????? | | ???????????????????????# [== ######???????????? | | ???????????????????????# [== # #??????????? | | ???????????????????????# ! u== # #??????????? | | ???????????????????????#Y@ g +?????????? | | ???????????????????????#=Y""" #o #??????????? | | ???????????????????????# =""" =# ???????????? | | ???????????????????????#!g""" ## #???????????? | | ???????????????????????# =[ ## #???????????? | | ???????????????????????##+######## #???????????? | | ????????????????????????#=#??????# +???????????? | | ????????????????????????# #??????# #???????????? | | ????????????????????????# #??????# #?????????### | | ????????????????????????# ######## ########### | | ????????????????????????# | | ????????????????????????# | | ????????????????????????# | | ????????????????????????# ####+########+### | | ??????????????????? + #? ???# ### | | ??????????????????"###### # """ ?# """#?? | | ????????????????????????# # """"" ## R"#?? | | ????????????????????????# # """"" ## """#?? | | ????????????????????????# ^ # """"" ## #?? | | ??????????????????????? ^^ # """ ## #?? | | ?????????????????????? # ??????# #?? | | ????????????????????? # ???????#######?? | | ????????????????????# # ????????????????? | | ????????????????????# ##????????????????? | | ?????????????????????###########?????????????????? | +----------------------------------------------------+ Best States ------------- Heat Dissipation 45 Energy Generation 10 Energy Capacity 125 Matter Stores 300 Matter Capacity 300 Sight Range 16 Terrain Scan Density 10 Evasion (%) 40 Recoil Reduction 2 Item Schematics ----------------- None Robot Schematics ------------------ None Fabricated ------------ Nothing Repaired ---------- Nothing Alien Tech Used ----------------- None Achievements -------------- None Challenges ------------ None Game ------ Seed VisualPitchforkMask Manual? 0 Play Time 00:06:26 Cumulative 102.1 hours Start 2025.06.30 @ 22:04:06 End 2025.06.30 @ 22:09:26 Sessions 1 Manual Loads 0 Difficulty Rogue Special Mode None Game No. 139 Rogue 139 Adventurer 0 Explorer 0 Win Type - Total 1 Types 1/0/0/0/0/0/0/0/0/0 Lore% 40 Gallery% 52 Achievement% 47 Wizard Run 0 Options --------- Layout 1 ASCII 0 Keyboard 0 Movement Arrows Keybinds 0 Fullscreen 1 Font 24/Smallcaps Map View 50x35 Zoom Use 0% Tactical HUD 1 Map Filters NONE Filters NONE Steam X RUN: 892bed2c-a4f2-43e1-a364-15410777e448